fUSD/lending_fUSD_20250108
["ID","MTS","AMOUNT","RATE_DAILY","PERIOD"]
[348137486,1736350253869,-962.14067658,0.00011961,2]
[348137487,1736350253879,-9026.14292377,0.00011999,4]
[348137488,1736350253889,-500.0,0.00011999,2]
[348137489,1736350253899,-24941.62869366,0.00012,2]
[348137490,1736350253913,-40149.79908809,0.00012,2]
[348137491,1736350253923,-22933.29767305,0.00012,2]
[348137492,1736350253932,-8107.41598525,0.00012,2]
[348137493,1736350253943,-300.0,0.00012,2]
[348137494,1736350253953,-463.1145265,0.00012,2]
[348137495,1736350253962,-3133.918,0.00012,6]
[348137496,1736350253972,-50000.0,0.00012,2]
[348137497,1736350253984,-500.0,0.00012,2]
[348137498,1736350253993,-72992.14611945,0.00012,7]
[348137499,1736350254003,-8006.40742889,0.00012,4]
[348137500,1736350254012,-3556.92190182,0.00012,10]
[348137501,1736350254021,-10134.65989028,0.00012,2]
[348137502,1736350254031,-995040.2620826,0.00012,2]
[348137503,1736350254041,-500.19,0.00012,2]
[348137504,1736350254051,-2000.0,0.00012,6]
[348137505,1736350254063,-600.0,0.00012,3]
[348137506,1736350254074,-6548.72047827,0.00012,7]
[348137507,1736350254084,-5000.0,0.00012,2]
[348137508,1736350254094,-21811.86493201,0.00012,2]
[348137509,1736350254104,-2946.28,0.00012,2]
[348137510,1736350254115,-32355.87380868,0.00012,2]
[348137511,1736350254126,-12557.8869,0.00012018,2]
[348137512,1736350254136,-5000.0,0.00012021,2]
[348137513,1736350254145,-150.0,0.00012054,2]
[348137514,1736350254157,-200.0,0.00012055,2]
[348137515,1736350254167,-681.17,0.00012058,2]
[348137516,1736350254176,-1475.22,0.00012063,2]
[348137517,1736350254186,-3095.36,0.00012063,2]
[348137518,1736350254196,-1376.99,0.00012063,2]
[348137519,1736350254206,-7990.07708556,0.0001207,2]
[348137520,1736350254215,-1658.43,0.00012073,2]
[348137521,1736350254226,-1306.68,0.00012073,2]
[348137522,1736350254236,-1240.17,0.00012073,2]
[348137523,1736350254245,-565.71,0.00012073,2]
[348137524,1736350254255,-2048.08,0.00012073,2]
[348137525,1736350254266,-765.25,0.00012073,2]
[348137526,1736350254276,-1363.56,0.00012073,2]
[348137527,1736350254286,-500.0,0.00012073,2]
[348137528,1736350254296,-1672.87,0.00012073,2]
[348137529,1736350254306,-500.0,0.00012074,2]
[348137530,1736350254315,-500.0,0.00012074,2]
[348137531,1736350254325,-500.0,0.00012074,2]
[348137532,1736350254334,-626.09,0.00012074,2]
[348137533,1736350254344,-500.0,0.00012074,2]
[348137534,1736350254354,-500.0,0.00012074,2]
[348137535,1736350254364,-500.0,0.00012074,2]
[348137536,1736350254374,-1769.41,0.00012074,2]
[348137537,1736350254384,-642.34,0.00012074,2]
[348137538,1736350254394,-500.0,0.00012074,2]
[348137539,1736350254408,-738.9,0.00012074,2]
[348137540,1736350254418,-979.74,0.00012074,2]
[348137541,1736350254429,-500.0,0.00012074,2]
[348137542,1736350254440,-1576.21,0.00012074,2]
[348137543,1736350254450,-1152.76,0.00012074,2]
[348137544,1736350254461,-1589.15,0.00012074,2]
[348137545,1736350254472,-2988.36,0.00012074,2]
[348137546,1736350254482,-2284.01,0.00012074,2]
[348137547,1736350254492,-756.48,0.00012075,2]
[348137548,1736350254502,-500.0,0.00012075,2]
[348137549,1736350254512,-500.0,0.00012075,2]
[348137550,1736350254522,-500.0,0.00012075,2]
[348137551,1736350254532,-1245.26,0.00012075,2]
[348137552,1736350254541,-500.0,0.00012075,2]
[348137553,1736350254551,-500.0,0.00012075,2]
[348137554,1736350254562,-500.0,0.00012075,2]
[348137555,1736350254572,-593.85,0.00012075,2]
[348137556,1736350254582,-500.0,0.00012075,2]
[348137557,1736350254592,-4101.05,0.00012075,2]
[348137558,1736350254601,-947.05,0.00012075,2]
[348137559,1736350254611,-613.7,0.00012075,2]
[348137560,1736350254621,-500.0,0.00012075,2]
[348137561,1736350254631,-658.64,0.00012075,2]
[348137562,1736350254640,-644.38357423,0.00012075,2]
[348137563,1736350254650,-546.42,0.00012075,2]
[348137564,1736350254661,-500.0,0.00012075,2]
[348137565,1736350254671,-500.0,0.00012075,2]
[348137566,1736350254681,-500.0,0.00012075,2]
[348137567,1736350254691,-500.0,0.00012075,2]
[348137568,1736350254701,-1556.51,0.00012075,2]
[348137569,1736350254711,-571.43,0.00012075,2]
[348137570,1736350254720,-561.21,0.00012075,2]
[348137571,1736350254730,-668.08,0.00012075,2]
[348137572,1736350254740,-624.25,0.00012075,2]
[348137573,1736350254750,-607.29,0.00012075,2]
[348137574,1736350254760,-500.0,0.00012075,2]
[348137575,1736350254770,-500.0,0.00012075,2]
[348137576,1736350254780,-500.0,0.00012075,2]
[348137577,1736350254790,-1159.29,0.00012075,2]
[348137578,1736350254801,-500.0,0.00012075,2]
[348137579,1736350254811,-556.36,0.00012075,2]
[348137580,1736350254821,-500.0,0.00012075,2]
[348137581,1736350254831,-732.94,0.00012075,2]
[348137582,1736350254842,-1177.53,0.00012075,2]
[348137583,1736350254852,-500.0,0.00012075,2]
[348137584,1736350254862,-634.44,0.00012075,2]
[348137585,1736350254873,-666.48,0.00012075,2]
[348137586,1736350254883,-2414.52,0.00012075,2]
[348137587,1736350254893,-702.19,0.00012075,2]
[348137588,1736350254906,-500.0,0.00012075,2]
[348137589,1736350254916,-500.0,0.00012076,2]
[348137590,1736350254927,-506.4,0.00012076,2]
[348137591,1736350254937,-500.0,0.00012076,2]
[348137592,1736350254947,-500.0,0.00012076,2]
[348137593,1736350254957,-500.0,0.00012076,2]
[348137594,1736350254967,-3363.72,0.00012076,2]
[348137595,1736350254977,-1379.69,0.00012076,2]
[348137596,1736350254987,-1902.53,0.00012076,2]
[348137597,1736350254997,-1114.22,0.00012076,2]
[348137598,1736350255007,-789.34,0.00012076,2]
[348137599,1736350255017,-1015.14,0.00012076,2]
[348137600,1736350255027,-2467.63,0.00012076,2]
[348137601,1736350255037,-717.44,0.00012076,2]
[348137602,1736350255047,-1352.5,0.00012076,2]
[348137603,1736350255057,-825.19639537,0.00012086,2]
[348137604,1736350255067,-5000.0,0.000121,2]
[348137605,1736350255078,-825.19639535,0.00012124,2]
[348137606,1736350255087,-500.0,0.00012136,2]
[348137607,1736350255097,-10000.0,0.00012148,5]
[348137608,1736350255107,-825.19639535,0.00012162,2]
[348137609,1736350255117,-2500.63,0.00012164,2]
[348137610,1736350255128,-2500.63,0.00012164,2]
[348137611,1736350255313,-2500.63,0.00012164,2]
[348137612,1736350255323,-2500.63,0.00012164,2]
[348137613,1736350255334,-2500.63,0.00012164,2]
[348137614,1736350255343,-2500.63,0.00012164,2]
[348137615,1736350255353,-2500.63,0.00012164,2]
[348137616,1736350255363,-2500.63,0.00012164,2]
[348137617,1736350255372,-2500.63,0.00012164,2]
[348137618,1736350255382,-2500.63,0.00012164,2]
[348137619,1736350255391,-2500.63,0.00012164,2]
[348137620,1736350255401,-2500.63,0.00012164,2]
[348137621,1736350255411,-2500.63,0.00012164,2]
[348137622,1736350255423,-2500.63,0.00012164,2]
[348137623,1736350255433,-2500.63,0.00012164,2]
[348137624,1736350255443,-2500.63,0.00012164,2]
[348137625,1736350255453,-2500.63,0.00012164,2]
[348137626,1736350255463,-2500.63,0.00012164,2]
[348137627,1736350255474,-2500.63,0.00012164,2]
[348137628,1736350255484,-2500.63,0.00012164,2]
[348137629,1736350255493,-2500.63,0.00012164,2]
[348137630,1736350255504,-2500.63,0.00012164,2]
[348137631,1736350255513,-2500.63,0.00012164,2]
[348137632,1736350255523,-2500.67725934,0.00012164,2]
[348137633,1736350255533,-5003.70779926,0.0001217,2]
[348137634,1736350255542,-803.72,0.00012176,2]
[348137635,1736350255551,-635.85,0.00012177,2]
[348137636,1736350255561,-605.38,0.00012177,2]
[348137637,1736350255571,-500.0,0.00012177,2]
[348137638,1736350255580,-500.0,0.00012177,2]
[348137639,1736350255590,-628.5,0.00012177,2]
[348137640,1736350255599,-844.83,0.00012177,2]
[348137641,1736350255608,-741.82,0.00012178,2]
[348137642,1736350255617,-2676.03,0.00012178,2]
[348137643,1736350255627,-1070.98,0.00012178,2]
[348137644,1736350255637,-1000.0,0.00012178,2]
[348137645,1736350255646,-777.78,0.00012178,2]
[348137646,1736350255656,-500.0,0.00012178,2]
[348137647,1736350255667,-2001.46,0.00012178,2]
[348137648,1736350255677,-1904.18,0.00012178,2]
[348137649,1736350255686,-500.0,0.00012186,2]
[348137650,1736350255695,-535.47,0.00012186,2]
[348137651,1736350255704,-1210.07,0.00012186,2]
[348137652,1736350255713,-1670.91,0.00012186,2]
[348137653,1736350255723,-1153.8,0.00012186,2]
[348137654,1736350255732,-1106.893711,0.00012186,2]
[348137655,1736350255741,-937.469333,0.00012186,2]
[348137656,1736350255751,-921.49,0.00012186,2]
[348137657,1736350255760,-3204.95,0.00012186,2]
[348137658,1736350255770,-565.58,0.00012186,2]
[348137659,1736350255779,-500.0,0.00012186,2]
[348137660,1736350255789,-500.0,0.00012186,2]
[348137661,1736350255799,-2952.1,0.00012186,2]
[348137662,1736350255809,-1473.31,0.00012186,2]
[348137663,1736350255819,-364.68945878,0.00012186,2]
[348137664,1736350255829,-1324.67,0.00012186,2]
[348137665,1736350255839,-1328.06,0.00012186,2]
[348137666,1736350255849,-500.0,0.00012186,2]
[348137667,1736350255859,-923.48,0.00012186,2]
[348137668,1736350255869,-175.016573,0.00012186,2]
[348137669,1736350255878,-2084.72,0.00012186,2]
[348137670,1736350255888,-1045.37,0.00012186,2]
[348137671,1736350255899,-3862.12,0.00012186,2]
[348137672,1736350255913,-3140.18,0.00012186,2]
[348137673,1736350255922,-150.0,0.00012191,2]
[348137674,1736350255932,-690.35,0.00012191,2]
[348137675,1736350255943,-500.0,0.00012191,2]
[348137676,1736350255952,-666.48,0.00012191,2]
[348137677,1736350255962,-500.0,0.00012191,2]
[348137678,1736350255972,-977.3,0.00012191,2]
[348137679,1736350255983,-500.0,0.00012191,2]
[348137680,1736350255993,-2000.0,0.000122,2]
[348137681,1736350256002,-2000.0,0.000122,2]
[348137682,1736350256011,-2000.0,0.000122,2]
[348137683,1736350256021,-2000.0,0.000122,2]
[348137684,1736350256030,-2000.0,0.000122,2]
[348137685,1736350256040,-103325.38175398,0.000122,2]
[348137686,1736350256049,-825.19639535,0.000122,2]
[348137687,1736350256060,-478.18951064,0.000122,2]
[348137688,1736350256072,-2000.0,0.000122,9]
[348137689,1736350256082,-180081.77598048,0.00012228,2]
[348137690,1736350256091,-201.67084511,0.00012233,2]
[348137691,1736350256102,-10000.0,0.0001225,2]
[348137692,1736350256112,-747.27575313,0.0001226,2]
[348137693,1736350256122,-500.65,0.0001226,2]
[348137694,1736350256131,-564391.08078405,0.0001227,2]
[348137695,1736350256141,-700.0,0.0001227,2]
[348137696,1736350256151,-700.0,0.0001227,2]
[348137697,1736350256161,-700.0,0.0001227,2]
[348137698,1736350256170,-911.75942125,0.0001227,2]
[348137699,1736350256180,-5486167.62311927,0.0001227,2]
[348137700,1736350256453,-1805.0000005,0.0001227,2]
[348137701,1736350256465,-317.98769101,0.0001227,2]
[348137702,1736350256478,-2358.13076303,0.0001227,2]
[348137703,1736350256489,-312.3160075,0.0001227,2]
[348137704,1736350256501,-2446.64980124,0.0001227,2]
[348137705,1736350256512,-1909.97131579,0.0001227,2]
[348137706,1736350256523,-1978.4478982,0.0001227,2]
[348137707,1736350256535,-414.84180741,0.0001227,2]
[348137708,1736350256552,-1426.3,0.0001227,2]
[348137709,1736350257021,-527.29,0.00010155,2]
[348137710,1736350257031,-500.0,0.00010157,2]
[348137711,1736350257041,-527.29,0.00010429,2]
[348137712,1736350257051,-527.29,0.00010703,2]
[348137713,1736350257063,-152.60690445,0.00010756,2]
[348137714,1736350257076,-500.0,0.00010821,2]
[348137715,1736350257086,-500.0,0.00011095,2]
[348137716,1736350257097,-500.0,0.00011369,2]
[348137717,1736350257108,-500.0,0.00011643,2]
[348137718,1736350257118,-500.0,0.00011917,2]
[348137719,1736350257128,-473137.7360113,0.0001227,2]
[348137720,1736350257152,-527.29,0.00010977,2]
[348137721,1736350257164,-94474.56773609,0.0001227,2]
[348137722,1736350257175,-582.5,0.0001227,2]
[348137723,1736350257186,-7381.18361,0.0001227,2]
[348137724,1736350257210,-1759.7844344,0.0001227,2]
[348137725,1736350257222,-23967.32527599,0.0001227,2]
[348137726,1736350257271,-500.0,0.00010158,2]
[348137727,1736350257282,-527.29,0.00011251,2]
[348137728,1736350257291,-500.0,0.00012191,2]
[348137729,1736350257302,-6102.07114969,0.0001227,2]
[348137730,1736350257314,-9509.5,0.0001227,2]
[348137731,1736350257779,-166.18496426,9.999e-05,2]
[348137732,1736350257788,-408.51504294,0.00010157,2]
[348137733,1736350257821,-91.48495706,0.00010157,2]
[348137734,1736350257831,-500.0,0.00010432,2]
[348137735,1736350257840,-500.0,0.00010706,2]
[348137736,1736350257849,-150.0,0.0001128,2]
[348137737,1736350257858,-150.0,0.00011417,2]
[348137738,1736350257867,-527.29,0.00011525,2]
[348137739,1736350257877,-150.0,0.00011554,2]
[348137740,1736350257886,-527.29,0.00011799,2]
[348137741,1736350257898,-527.29,0.00012073,2]
[348137742,1736350257908,-126014.95882504,0.0001227,2]
[348137743,1736350257919,-536741.61475195,0.0001227,2]
[348137744,1736350257930,-676474.20414659,0.0001227,2]
[348137745,1736350257943,-2259.33049327,0.0001227,2]
[348137746,1736350257953,-1089.53701328,0.0001227,2]
[348137747,1736350257966,-1156.8084,0.0001227,2]
[348137748,1736350257987,-566.0,0.00010342,2]
[348137749,1736350257996,-8924.0,0.0001227,2]
[348137750,1736350258008,-467.755884,0.0001227,2]
[348137753,1736350926637,1455.89625869,0.0002,120]
[348137759,1736351168908,18251.1986218,0.0002,120]
[348137770,1736351387060,-520.34,8.219e-05,2]
[348137771,1736351387087,-150.0,8.769e-05,2]
[348137772,1736351387114,-320.96,8.77e-05,2]
[348137773,1736351387140,-250.0,8.77e-05,2]
[348137774,1736351387167,-190.93,8.77e-05,2]
[348137775,1736351387193,-168.11,8.77e-05,2]
[348137776,1736351387218,-4493.17,8.77e-05,2]
[348137777,1736351387242,-250.0,8.77e-05,2]
[348137778,1736351387269,-1000.0,8.77e-05,2]
[348137779,1736351387292,-250.0,8.77e-05,2]
[348137780,1736351387318,-255.0,9.646e-05,2]
[348137781,1736351387344,-190.93,9.867e-05,2]
[348137782,1736351387370,-1000.0,9.867e-05,2]
[348137783,1736351387396,-26633.0,9.868e-05,2]
[348137784,1736351387420,-520.0735,9.899e-05,2]
[348137785,1736351387444,-297.2003,9.9e-05,2]
[348137786,1736351387471,-10508.5643,9.9e-05,2]
[348137787,1736351387497,-302.86800702,9.999e-05,2]
[348137788,1736351387524,-505.61974463,9.999e-05,2]
[348137789,1736351387548,-500.0,9.999e-05,2]
[348137790,1736351387574,-500.0,9.999e-05,2]
[348137791,1736351387600,-500.0,9.999e-05,2]
[348137792,1736351387626,-500.0,9.999e-05,2]
[348137793,1736351387652,-757.22592,9.999e-05,2]
[348137794,1736351387678,-500.0,9.999e-05,2]
[348137795,1736351387703,-2136.64,9.999e-05,2]
[348137796,1736351387727,-500.0,9.999e-05,2]
[348137797,1736351387750,-500.0,9.999e-05,2]
[348137798,1736351387776,-500.0,9.999e-05,2]
[348137799,1736351387801,-500.0,9.999e-05,2]
[348137800,1736351387832,-741.65727,9.999e-05,2]
[348137801,1736351387857,-500.0,9.999e-05,2]
[348137802,1736351387884,-500.0,9.999e-05,2]
[348137803,1736351387909,-500.0,9.999e-05,2]
[348137804,1736351387933,-500.0,9.999e-05,2]
[348137805,1736351387958,-500.0,9.999e-05,2]
[348137806,1736351387982,-500.0,9.999e-05,2]
[348137807,1736351388008,-2004.82,9.999e-05,2]
[348137808,1736351388035,-500.0,9.999e-05,2]
[348137809,1736351388059,-500.0,9.999e-05,2]
[348137810,1736351388085,-622.15510973,9.999e-05,2]
[348137811,1736351388110,-489.68980082,9.999e-05,2]
[348137812,1736351388135,-500.0,9.999e-05,2]
[348137813,1736351388159,-500.0,9.999e-05,2]
[348137814,1736351388183,-500.0,9.999e-05,2]
[348137815,1736351388208,-504.21743798,9.999e-05,2]
[348137816,1736351388235,-501.86969843,9.999e-05,2]
[348137817,1736351388262,-500.0,9.999e-05,2]
[348137818,1736351388287,-503.10021061,9.999e-05,2]
[348137819,1736351388316,-500.0,9.999e-05,2]
[348137820,1736351388342,-504.32,9.999e-05,2]
[348137821,1736351388367,-500.0,9.999e-05,2]
[348137822,1736351388393,-500.0,9.999e-05,2]
[348137823,1736351388417,-500.0,9.999e-05,2]
[348137824,1736351388448,-502.36394147,9.999e-05,2]
[348137825,1736351388474,-500.77904926,9.999e-05,2]
[348137826,1736351388499,-500.0,9.999e-05,2]
[348137827,1736351388527,-579.28431244,9.999e-05,2]
[348137828,1736351388553,-500.0,9.999e-05,2]
[348137829,1736351388579,-500.0,9.999e-05,2]
[348137830,1736351388607,-500.0,9.999e-05,2]
[348137831,1736351388633,-500.0,9.999e-05,2]
[348137832,1736351388661,-500.0,9.999e-05,2]
[348137833,1736351388690,-500.0,9.999e-05,2]
[348137834,1736351388716,-500.0,9.999e-05,2]
[348137835,1736351388743,-500.0,9.999e-05,2]
[348137836,1736351388771,-500.0,9.999e-05,2]
[348137837,1736351388796,-556.72216282,9.999e-05,2]
[348137838,1736351388822,-500.0,9.999e-05,2]
[348137839,1736351388848,-500.0,9.999e-05,2]
[348137840,1736351388873,-500.0,9.999e-05,2]
[348137841,1736351388900,-500.0,9.999e-05,2]
[348137842,1736351388927,-500.0,9.999e-05,2]
[348137843,1736351388951,-500.0,9.999e-05,2]
[348137844,1736351388976,-500.0,9.999e-05,2]
[348137845,1736351389002,-502.40944064,9.999e-05,2]
[348137846,1736351389033,-503.55019058,9.999e-05,2]
[348137847,1736351389059,-500.0,9.999e-05,2]
[348137848,1736351389085,-500.0,9.999e-05,2]
[348137849,1736351389109,-500.0,9.999e-05,2]
[348137850,1736351389134,-500.0,9.999e-05,2]
[348137851,1736351389159,-500.0,9.999e-05,2]
[348137852,1736351389185,-500.0,9.999e-05,2]
[348137853,1736351389211,-500.0,9.999e-05,2]
[348137854,1736351389236,-500.0,9.999e-05,2]
[348137855,1736351389261,-575.38,9.999e-05,2]
[348137856,1736351389286,-500.0,9.999e-05,2]
[348137857,1736351389314,-500.0,9.999e-05,2]
[348137858,1736351389341,-500.0,9.999e-05,2]
[348137859,1736351389367,-821.07,9.999e-05,2]
[348137860,1736351389392,-500.0,9.999e-05,2]
[348137861,1736351389417,-500.0,9.999e-05,2]
[348137862,1736351389441,-500.92706138,9.999e-05,2]
[348137863,1736351389466,-528.46,9.999e-05,2]
[348137864,1736351389760,-500.0,9.999e-05,2]
[348137865,1736351389795,-500.0,9.999e-05,2]
[348137866,1736351389821,-537.82,9.999e-05,2]
[348137867,1736351389846,-948.76,9.999e-05,2]
[348137868,1736351389870,-500.0,9.999e-05,2]
[348137869,1736351389894,-500.0,9.999e-05,2]
[348137870,1736351389918,-500.0,9.999e-05,2]
[348137871,1736351389943,-500.0,9.999e-05,2]
[348137872,1736351389968,-500.0,9.999e-05,2]
[348137873,1736351389993,-500.0,9.999e-05,2]
[348137874,1736351390020,-562.11,9.999e-05,2]
[348137875,1736351390045,-956.46,9.999e-05,2]
[348137876,1736351390072,-500.0,9.999e-05,2]
[348137877,1736351390100,-500.0,9.999e-05,2]
[348137878,1736351390126,-500.0,9.999e-05,2]
[348137879,1736351390150,-500.0,9.999e-05,2]
[348137880,1736351390175,-505.27900817,9.999e-05,2]
[348137881,1736351390199,-500.0,9.999e-05,2]
[348137882,1736351390223,-502.73152832,9.999e-05,2]
[348137883,1736351390248,-500.0,9.999e-05,2]
[348137884,1736351390277,-500.0,9.999e-05,2]
[348137885,1736351390303,-500.0,9.999e-05,2]
[348137886,1736351390332,-500.0,9.999e-05,2]
[348137887,1736351390359,-549.42027639,9.999e-05,2]
[348137888,1736351390386,-500.0,9.999e-05,2]
[348137889,1736351390411,-500.0,9.999e-05,2]
[348137890,1736351390437,-670.57,9.999e-05,2]
[348137891,1736351390462,-500.0,9.999e-05,2]
[348137892,1736351390496,-500.0,9.999e-05,2]
[348137893,1736351390525,-500.0,9.999e-05,2]
[348137894,1736351390552,-500.0,9.999e-05,2]
[348137895,1736351390579,-500.0,9.999e-05,2]
[348137896,1736351390605,-500.0,9.999e-05,2]
[348137897,1736351390629,-500.0,9.999e-05,2]
[348137898,1736351390655,-1440.49,9.999e-05,2]
[348137899,1736351390681,-500.0,9.999e-05,2]
[348137900,1736351390705,-500.0,9.999e-05,2]
[348137901,1736351390729,-553.30221765,9.999e-05,2]
[348137902,1736351390753,-500.0,9.999e-05,2]
[348137903,1736351390781,-500.0,9.999e-05,2]
[348137904,1736351390805,-500.0,9.999e-05,2]
[348137905,1736351390830,-726.92,9.999e-05,2]
[348137906,1736351390853,-500.0,9.999e-05,2]
[348137907,1736351390878,-500.0,9.999e-05,2]
[348137908,1736351390902,-500.0,9.999e-05,2]
[348137909,1736351390926,-500.0,9.999e-05,2]
[348137910,1736351390950,-500.0,9.999e-05,2]
[348137911,1736351390974,-500.0,9.999e-05,2]
[348137912,1736351390997,-500.0,9.999e-05,2]
[348137913,1736351391023,-500.0,9.999e-05,2]
[348137914,1736351391046,-500.0,9.999e-05,2]
[348137915,1736351391071,-2620.57,9.999e-05,2]
[348137916,1736351391097,-500.0,9.999e-05,2]
[348137917,1736351391120,-500.0,9.999e-05,2]
[348137918,1736351391145,-500.0,9.999e-05,2]
[348137919,1736351391168,-500.0,9.999e-05,2]
[348137920,1736351391192,-650.46,9.999e-05,2]
[348137921,1736351391215,-500.0,9.999e-05,2]
[348137922,1736351391239,-2133.07,9.999e-05,2]
[348137923,1736351391264,-523.95,9.999e-05,2]
[348137924,1736351391288,-540.05,9.999e-05,2]
[348137925,1736351391314,-500.0,9.999e-05,2]
[348137926,1736351391339,-500.0,9.999e-05,2]
[348137927,1736351391363,-500.0,9.999e-05,2]
[348137928,1736351391388,-500.0,9.999e-05,2]
[348137929,1736351391412,-500.0,9.999e-05,2]
[348137930,1736351391437,-983.48,9.999e-05,2]
[348137931,1736351391466,-500.0,9.999e-05,2]
[348137932,1736351391495,-251.00257519,9.999e-05,2]
[348137933,1736351391523,-2063.57,9.999e-05,2]
[348137934,1736351391550,-1037.68,9.999e-05,2]
[348137935,1736351391576,-500.0,9.999e-05,2]
[348137936,1736351391601,-793.69,9.999e-05,2]
[348137937,1736351391626,-4000.0,0.0001,2]
[348137938,1736351391649,-172.17,0.0001,2]
[348137939,1736351391675,-5415.68575426,0.0001,4]
[348137940,1736351391699,-158.34895875,0.0001,2]
[348137941,1736351391723,-1621.49786555,0.0001,2]
[348137942,1736351402001,994.44,9.999e-05,2]
[348137943,1736351424373,760.62,9.999e-05,2]
[348137952,1736351431816,-304.219998,0.00010057,2]
[348137953,1736351431887,-695.780002,0.00010057,2]
[348137954,1736351431896,-604.09485779,0.00010057,2]
[348137955,1736351431908,-1154.19724221,0.00010057,2]
[348137956,1736351431918,-2185.7125,0.00010057,2]
[348137957,1736351431928,-155.05,0.00010137,2]
[348137958,1736351431937,-163.97,0.00010137,2]
[348137959,1736351431948,-669.37,0.00010145,2]
[348137960,1736351431958,-158.34895873,0.00010155,2]
[348137961,1736351431967,-500.0,0.00010156,2]
[348137962,1736351431976,-1159.16,0.00010156,2]
[348137963,1736351431986,-871.12,0.00010156,2]
[348137964,1736351431995,-500.0,0.00010156,2]
[348137965,1736351432004,-866.61,0.00010156,2]
[348137966,1736351432013,-500.0,0.00010156,2]
[348137967,1736351432023,-1425.36,0.00010156,2]
[348137968,1736351432033,-500.0,0.00010156,2]
[348137969,1736351432046,-247.93588086,0.00010156,2]
[348137970,1736351432056,-500.0,0.00010156,2]
[348137971,1736351432067,-500.0,0.00010156,2]
[348137972,1736351432076,-536.78,0.00010156,2]
[348137973,1736351432086,-500.0,0.00010156,2]
[348137974,1736351432096,-948.63,0.00010156,2]
[348137975,1736351432106,-500.0,0.00010156,2]
[348137976,1736351432119,-637.67,0.00010156,2]
[348137977,1736351432129,-500.0,0.00010156,2]
[348137978,1736351432138,-500.0,0.00010156,2]
[348137979,1736351432148,-500.0,0.00010156,2]
[348137980,1736351432158,-500.0,0.00010156,2]
[348137981,1736351432168,-1165.4,0.00010156,2]
[348137982,1736351432177,-500.0,0.00010156,2]
[348137983,1736351432187,-500.0,0.00010156,2]
[348137984,1736351432197,-194416.48954192,0.00010157,2]
[348137985,1736351432206,-1318.86,0.00010157,2]
[348137986,1736351432216,-1257.07,0.00010157,2]
[348137987,1736351432226,-6454.55,0.00010157,2]
[348137988,1736351432235,-500.0,0.00010157,2]
[348137989,1736351432245,-500.0,0.00010157,2]
[348137990,1736351432255,-500.0,0.00010157,2]
[348137991,1736351432264,-3133.23,0.00010157,2]
[348137992,1736351432277,-692.94,0.00010157,2]
[348137993,1736351432286,-920.82,0.00010157,2]
[348137994,1736351432304,-732.59,0.00010157,2]
[348137995,1736351432315,-500.0,0.00010157,2]
[348137996,1736351432328,-670.81,0.00010157,2]
[348137997,1736351432343,-585.95589756,0.00010158,2]
[348137998,1736351432359,-506.95,0.00010158,2]
[348137999,1736351432372,-1285.62,0.00010158,2]
[348138000,1736351432386,-500.0,0.00010158,2]
[348138001,1736351432399,-1434.18,0.00010158,2]
[348138002,1736351432411,-864.85957444,0.0001018,2]
[348138003,1736351432424,-500.0,0.0001025,2]
[348138004,1736351432438,-500.0,0.00010267,2]
[348138005,1736351432451,-500.0,0.00010267,2]
[348138006,1736351432463,-500.0,0.00010267,2]
[348138007,1736351432477,-500.0,0.00010267,2]
[348138008,1736351432492,-500.0,0.00010267,2]
[348138009,1736351432505,-500.0,0.00010267,2]
[348138010,1736351432519,-500.0,0.00010267,2]